fUST/lending_fUST_20240723
["ID","MTS","AMOUNT","RATE_DAILY","PERIOD"]
[332927297,1721681468373,-500.0,0.00016164,2]
[332927298,1721681468383,-462.08,0.00016164,2]
[332927299,1721681468393,-500.0,0.00016164,2]
[332927300,1721681468403,-500.0,0.00016164,2]
[332927301,1721681468413,-500.0,0.00016164,2]
[332927302,1721681468424,-500.0,0.00016164,2]
[332927303,1721681468433,-500.0,0.00016164,2]
[332927304,1721681468444,-500.0,0.00016164,2]
[332927305,1721681468454,-500.0,0.00016164,2]
[332927306,1721681468464,-500.0,0.00016164,2]
[332927307,1721681468475,-500.0,0.00016164,2]
[332927308,1721681468485,-500.0,0.00016164,2]
[332927309,1721681468495,-282.62,0.00016164,2]
[332927310,1721681468505,-500.0,0.00016164,2]
[332927311,1721681468517,-151.0,0.00016164,2]
[332927312,1721681468526,-500.0,0.00016164,2]
[332927313,1721681468536,-151.0,0.00016164,2]
[332927314,1721681468546,-500.0,0.00016164,2]
[332927315,1721681468555,-525.76,0.00016164,2]
[332927316,1721681468565,-151.0,0.00016164,2]
[332927317,1721681468656,-500.0,0.00016164,2]
[332927318,1721681468666,-500.0,0.00016164,2]
[332927319,1721681468676,-500.0,0.00016164,2]
[332927320,1721681468687,-500.0,0.00016164,2]
[332927321,1721681468700,-281.68,0.00016164,2]
[332927322,1721681468711,-500.0,0.00016164,2]
[332927323,1721681468721,-500.0,0.00016164,2]
[332927324,1721681468731,-500.0,0.00016164,2]
[332927325,1721681468740,-418.39,0.00016164,2]
[332927326,1721681468750,-207.851365,0.00016164,2]
[332927327,1721681468760,-500.0,0.00016164,2]
[332927328,1721681468771,-578.99,0.00016164,2]
[332927329,1721681468780,-207.851365,0.00016164,2]
[332927330,1721681468790,-500.0,0.00016164,2]
[332927331,1721681468799,-500.0,0.00016164,2]
[332927332,1721681468809,-151.0,0.00016164,2]
[332927333,1721681468818,-189.18,0.00016164,2]
[332927334,1721681468827,-151.0,0.00016164,2]
[332927335,1721681468837,-500.0,0.00016164,2]
[332927336,1721681468847,-500.0,0.00016164,2]
[332927337,1721681468857,-500.0,0.00016164,2]
[332927338,1721681468867,-500.0,0.00016164,2]
[332927339,1721681468876,-206.61563991,0.00016164,2]
[332927340,1721681468885,-3000.0,0.0001617,2]
[332927341,1721681468895,-400.0,0.00016174,2]
[332927342,1721681468905,-3000.0,0.0001618,2]
[332927343,1721681468915,-400.0,0.00016185,2]
[332927344,1721681468926,-3000.0,0.0001619,2]
[332927345,1721681468936,-3000.0,0.000162,2]
[332927346,1721681468947,-3000.0,0.0001621,2]
[332927347,1721681468957,-3000.0,0.0001622,2]
[332927348,1721681468967,-3000.0,0.0001623,2]
[332927349,1721681468976,-3000.0,0.0001624,2]
[332927350,1721681468985,-3000.0,0.0001625,2]
[332927351,1721681468995,-5218.39312197,0.00016257,2]
[332927352,1721681469004,-3000.0,0.0001626,2]
[332927353,1721681469014,-150.0,0.00016261,2]
[332927354,1721681469024,-3000.0,0.0001627,2]
[332927355,1721681469034,-3000.0,0.0001628,2]
[332927356,1721681469045,-3000.0,0.0001629,2]
[332927357,1721681469057,-3000.0,0.000163,2]
[332927358,1721681469067,-531.29167136,0.00016309,2]
[332927359,1721681469077,-848.46107157,0.00016309,2]
[332927360,1721681469087,-994.32496375,0.00016309,2]
[332927361,1721681469097,-663.51231387,0.00016309,2]
[332927362,1721681469109,-3000.0,0.0001631,2]
[332927363,1721681469119,-3000.0,0.0001632,2]
[332927364,1721681469128,-296.93289548,0.00016321,2]
[332927365,1721681469138,-5850.410323,0.0001633,2]
[332927366,1721681469148,-726.7153245,0.00016347,2]
[332927367,1721681469158,-154.71377951,0.00016347,2]
[332927368,1721681469168,-156.43671221,0.00016347,2]
[332927369,1721681469177,-341.66678597,0.00016347,2]
[332927370,1721681469187,-154.71377951,0.00016347,2]
[332927371,1721681469204,-122.03250503,0.00016438,2]
[332927372,1721681469214,-554.96,0.00016438,2]
[332927373,1721681469226,-500.0,0.00016438,2]
[332927374,1721681469235,-500.0,0.00016438,2]
[332927375,1721681469246,-500.0,0.00016438,2]
[332927376,1721681469255,-500.0,0.00016438,2]
[332927377,1721681469265,-500.0,0.00016438,2]
[332927378,1721681469276,-500.0,0.00016438,2]
[332927379,1721681469285,-500.0,0.00016438,2]
[332927380,1721681469294,-232.17,0.00016438,2]
[332927381,1721681469318,-500.0,0.00016438,2]
[332927382,1721681469334,-500.0,0.00016438,2]
[332927383,1721681469353,-500.0,0.00016438,2]
[332927384,1721681469374,-500.0,0.00016438,2]
[332927385,1721681469393,-500.0,0.00016438,2]
[332927386,1721681469412,-500.0,0.00016438,2]
[332927387,1721681469430,-500.0,0.00016438,2]
[332927388,1721681469445,-500.0,0.00016438,2]
[332927389,1721681469464,-609.07,0.00016438,2]
[332927390,1721681469484,-500.0,0.00016438,2]
[332927391,1721681469498,-522.82,0.00016438,2]
[332927392,1721681469514,-627.63,0.00016438,2]
[332927393,1721681469532,-500.0,0.00016438,2]
[332927394,1721681469550,-540.01,0.00016438,2]
[332927395,1721681469567,-500.0,0.00016438,2]
[332927396,1721681469583,-500.0,0.00016438,2]
[332927397,1721681469597,-568.51,0.00016438,2]
[332927398,1721681469612,-500.0,0.00016438,2]
[332927399,1721681469627,-500.0,0.00016438,2]
[332927400,1721681469641,-531.60651285,0.00016438,2]
[332927401,1721681469656,-633.99,0.00016438,2]
[332927402,1721681469671,-201.22,0.00016438,2]
[332927403,1721681469686,-500.0,0.00016438,2]
[332927404,1721681469703,-500.0,0.00016438,2]
[332927405,1721681469717,-677.52,0.00016438,2]
[332927406,1721681469732,-509.15,0.00016438,2]
[332927407,1721681469748,-500.0,0.00016438,2]
[332927408,1721681469763,-500.0,0.00016438,2]
[332927409,1721681469777,-562.75,0.00016438,2]
[332927410,1721681469792,-166.40016222,0.00016438,2]
[332927411,1721681469806,-500.0,0.00016438,2]
[332927412,1721681469821,-500.0,0.00016438,2]
[332927413,1721681469834,-607.77,0.00016438,2]
[332927414,1721681469849,-500.0,0.00016438,2]
[332927415,1721681469863,-500.0,0.00016438,2]
[332927416,1721681469877,-500.0,0.00016438,2]
[332927417,1721681469891,-500.0,0.00016438,2]
[332927418,1721681469907,-500.0,0.00016438,2]
[332927419,1721681469923,-500.0,0.00016438,2]
[332927420,1721681469938,-809.09,0.00016438,2]
[332927421,1721681469953,-500.0,0.00016438,2]
[332927422,1721681469968,-500.0,0.00016438,2]
[332927423,1721681469982,-500.0,0.00016438,2]
[332927424,1721681469996,-500.0,0.00016438,2]
[332927425,1721681470010,-592.54,0.00016438,2]
[332927426,1721681470024,-500.0,0.00016438,2]
[332927427,1721681470040,-740.31,0.00016438,2]
[332927428,1721681470054,-941.88,0.00016438,2]
[332927429,1721681470067,-1442.48,0.00016438,2]
[332927430,1721681470082,-500.0,0.00016438,2]
[332927431,1721681470097,-500.0,0.00016438,2]
[332927432,1721681470112,-500.0,0.00016438,2]
[332927433,1721681470125,-248.5,0.00016438,2]
[332927434,1721681470140,-14437.64528572,0.00016438,2]
[332927435,1721681470154,-2358.94,0.00016438,2]
[332927436,1721681470168,-667.65,0.00016438,2]
[332927437,1721681470181,-154.71377951,0.00016438,2]
[332927438,1721681470197,-500.0,0.00016438,2]
[332927439,1721681470212,-500.0,0.00016438,2]
[332927440,1721681470226,-552.73820098,0.00016438,2]
[332927441,1721681470241,-500.0,0.00016438,2]
[332927442,1721681470256,-524.14,0.00016438,2]
[332927443,1721681470377,-195.87769448,0.00016438,2]
[332927444,1721681470387,-500.0,0.00016438,2]
[332927445,1721681470396,-500.0,0.00016438,2]
[332927446,1721681470405,-615.18,0.00016438,2]
[332927447,1721681470415,-2089.36,0.00016438,2]
[332927448,1721681470424,-652.17,0.00016438,2]
[332927449,1721681470433,-502.56,0.00016438,2]
[332927450,1721681470442,-1234.39,0.00016438,2]
[332927451,1721681470451,-500.0,0.00016438,2]
[332927452,1721681470461,-184.31148569,0.00016438,2]
[332927453,1721681470470,-500.0,0.00016438,2]
[332927454,1721681470479,-600.8,0.00016438,2]
[332927455,1721681470488,-784.16,0.00016438,2]
[332927456,1721681470497,-570.88,0.00016438,2]
[332927457,1721681470507,-500.0,0.00016438,2]
[332927458,1721681470516,-500.0,0.00016438,2]
[332927459,1721681470527,-962.14,0.00016438,2]
[332927460,1721681470536,-160.73,0.00016438,2]
[332927461,1721681470545,-978.53,0.00016438,2]
[332927462,1721681470554,-696.68,0.00016438,2]
[332927463,1721681470564,-500.0,0.00016438,2]
[332927464,1721681470573,-1096.52,0.00016438,2]
[332927465,1721681470582,-500.0,0.00016438,2]
[332927466,1721681470592,-500.0,0.00016438,2]
[332927467,1721681470601,-637.7,0.00016438,2]
[332927468,1721681470611,-500.0,0.00016438,2]
[332927469,1721681470620,-500.0,0.00016438,2]
[332927470,1721681470629,-500.0,0.00016438,2]
[332927471,1721681470639,-500.0,0.00016438,2]
[332927472,1721681470648,-500.0,0.00016438,2]
[332927473,1721681470657,-500.0,0.00016438,2]
[332927474,1721681470666,-443.38156347,0.00016438,2]
[332927475,1721681470676,-500.0,0.00016438,2]
[332927476,1721681470685,-500.0,0.00016438,2]
[332927477,1721681470698,-1030.13,0.00016438,2]
[332927478,1721681470707,-500.0,0.00016438,2]
[332927479,1721681470717,-152.29,0.00016438,2]
[332927480,1721681470726,-500.0,0.00016438,2]
[332927481,1721681470736,-552.23,0.00016438,2]
[332927482,1721681470745,-500.0,0.00016438,2]
[332927483,1721681470755,-500.0,0.00016438,2]
[332927484,1721681470764,-500.0,0.00016438,2]
[332927485,1721681470773,-500.0,0.00016438,2]
[332927486,1721681470782,-524.6,0.00016438,2]
[332927487,1721681470791,-819.36,0.00016438,2]
[332927488,1721681470801,-500.0,0.00016438,2]
[332927489,1721681470810,-312.78,0.00016438,2]
[332927490,1721681470820,-500.0,0.00016438,2]
[332927491,1721681470829,-500.0,0.00016438,2]
[332927492,1721681470838,-500.0,0.00016438,2]
[332927493,1721681470847,-500.0,0.00016438,2]
[332927494,1721681470858,-500.0,0.00016438,2]
[332927495,1721681470868,-500.0,0.00016438,2]
[332927496,1721681470878,-500.0,0.00016438,2]
[332927497,1721681470889,-500.0,0.00016438,2]
[332927498,1721681470898,-404.32,0.00016438,2]
[332927499,1721681470908,-466.95,0.00016438,2]
[332927500,1721681470918,-562.62,0.00016438,2]
[332927501,1721681470927,-621.97,0.00016438,2]
[332927502,1721681470937,-151.0,0.00016438,2]
[332927503,1721681470948,-500.0,0.00016438,2]
[332927504,1721681470958,-166.11,0.00016438,2]
[332927505,1721681470968,-274.09,0.00016438,2]
[332927506,1721681470977,-500.0,0.00016438,2]
[332927507,1721681470986,-470.23,0.00016438,2]
[332927508,1721681470995,-500.0,0.00016438,2]
[332927509,1721681471004,-500.0,0.00016438,2]
[332927510,1721681471014,-500.0,0.00016438,2]
[332927511,1721681471023,-479.44084987,0.00016438,2]
[332927512,1721681471032,-500.0,0.00016438,2]
[332927513,1721681471042,-500.0,0.00016438,2]
[332927514,1721681471051,-500.0,0.00016438,2]
[332927515,1721681471060,-500.0,0.00016438,2]
[332927516,1721681471069,-616.59,0.00016438,2]
[332927517,1721681471078,-500.0,0.00016438,2]
[332927518,1721681471088,-589.64,0.00016438,2]
[332927519,1721681471097,-500.0,0.00016438,2]
[332927520,1721681471107,-422.08,0.00016438,2]
[332927521,1721681471116,-240.56,0.00016438,2]
[332927522,1721681471125,-500.0,0.00016438,2]
[332927523,1721681471134,-631.65,0.00016438,2]
[332927524,1721681471144,-500.0,0.00016438,2]
[332927525,1721681471153,-328.98,0.00016438,2]
[332927526,1721681471163,-500.0,0.00016438,2]
[332927527,1721681471173,-177.48,0.00016438,2]
[332927528,1721681471182,-163.39,0.00016438,2]
[332927529,1721681471196,-500.0,0.00016438,2]
[332927530,1721681471211,-500.0,0.00016438,2]
[332927531,1721681471220,-500.0,0.00016438,2]
[332927532,1721681471229,-500.0,0.00016438,2]
[332927533,1721681471239,-214.13022137,0.00016438,2]
[332927534,1721681471249,-500.0,0.00016438,2]
[332927535,1721681471258,-500.0,0.00016438,2]
[332927536,1721681471268,-578.99,0.00016438,2]
[332927537,1721681471279,-500.0,0.00016438,2]
[332927538,1721681471289,-451.53,0.00016438,2]
[332927539,1721681471298,-500.0,0.00016438,2]
[332927540,1721681471307,-310.75,0.00016438,2]
[332927541,1721681471318,-500.0,0.00016438,2]
[332927542,1721681471328,-500.0,0.00016438,2]
[332927543,1721681471338,-151.0,0.00016438,2]
[332927544,1721681471348,-218.099786,0.00016438,2]
[332927545,1721681471359,-275.77,0.00016438,2]
[332927546,1721681471369,-163.4,0.00016438,2]
[332927547,1721681471378,-416.9,0.00016438,2]
[332927548,1721681471388,-163.203199,0.00016438,2]
[332927549,1721681471397,-151.0,0.00016438,2]
[332927550,1721681471406,-151.0,0.00016438,2]
[332927551,1721681471416,-151.0,0.00016438,2]
[332927552,1721681471426,-196.751752,0.00016438,2]
[332927553,1721681471435,-196.751752,0.00016438,2]
[332927554,1721681471447,-151.0,0.00016438,2]
[332927555,1721681471456,-151.0,0.00016438,2]
[332927556,1721681471466,-151.0,0.00016438,2]
[332927557,1721681471475,-156.820474,0.00016438,2]
[332927558,1721681471486,-196.48811,0.00016438,2]
[332927559,1721681471495,-156.820474,0.00016438,2]
[332927560,1721681471504,-196.48811,0.00016438,2]
[332927561,1721681471514,-151.0,0.00016438,2]
[332927562,1721681471523,-224.50165,0.00016438,2]
[332927563,1721681471533,-224.50165,0.00016438,2]
[332927564,1721681471543,-151.0,0.00016438,2]
[332927565,1721681471552,-151.0,0.00016438,2]
[332927566,1721681471563,-151.0,0.00016438,2]
[332927567,1721681471572,-166.666666,0.00016438,2]
[332927568,1721681471582,-219.2886946,0.00016448,2]
[332927569,1721681471592,-306.0,0.00016448,2]
[332927570,1721681471601,-378.336947,0.00016448,2]
[332927571,1721681471611,-195.90695,0.00016456,2]
[332927572,1721681471620,-167.387979,0.00016456,2]
[332927573,1721681471629,-167.387979,0.00016456,2]
[332927574,1721681471639,-195.906949,0.00016456,2]
[332927575,1721681471648,-195.906949,0.00016456,2]
[332927576,1721681471657,-167.387979,0.00016456,2]
[332927577,1721681471666,-638.29261019,0.000165,2]
[332927578,1721681471751,-154.71377951,0.00016532,2]
[332927579,1721681471760,-154.71377951,0.00016532,2]
[332927580,1721681471769,-154.85282802,0.00016532,2]
[332927581,1721681471779,-154.71377951,0.00016591,2]
[332927582,1721681471790,-2519.71671576,0.00016645,2]
[332927583,1721681471799,-1748.25,0.00016712,2]
[332927584,1721681471808,-550.61854346,0.00016712,2]
[332927585,1721681471818,-1403.19,0.00016712,2]
[332927586,1721681471828,-500.0,0.00016712,2]
[332927587,1721681471838,-169.97,0.00016712,2]
[332927588,1721681471847,-500.0,0.00016712,2]
[332927589,1721681471857,-503.99,0.00016712,2]
[332927590,1721681471867,-500.0,0.00016712,2]
[332927591,1721681471877,-1286.77,0.00016712,2]
[332927592,1721681471887,-500.0,0.00016712,2]
[332927593,1721681471898,-500.0,0.00016712,2]
[332927594,1721681471909,-504.21,0.00016712,2]
[332927595,1721681471921,-500.0,0.00016712,2]
[332927596,1721681471930,-2398.17,0.00016712,2]
[332927597,1721681471940,-313.44,0.00016712,2]
[332927598,1721681471951,-500.0,0.00016712,2]
[332927599,1721681471962,-500.0,0.00016712,2]
[332927600,1721681471972,-1715.81,0.00016712,2]
[332927601,1721681471982,-519.73,0.00016712,2]
[332927602,1721681471992,-500.0,0.00016712,2]
[332927603,1721681472001,-500.0,0.00016712,2]
[332927604,1721681472010,-2945.6,0.00016712,2]
[332927605,1721681472020,-500.0,0.00016712,2]
[332927606,1721681472029,-500.0,0.00016712,2]
[332927607,1721681472038,-548.84,0.00016712,2]
[332927608,1721681472047,-1056.19,0.00016712,2]
[332927609,1721681472056,-500.0,0.00016712,2]
[332927610,1721681472066,-1214.04,0.00016712,2]
[332927611,1721681472075,-900.64,0.00016712,2]
[332927612,1721681472084,-600.28,0.00016712,2]
[332927613,1721681472093,-164.56011857,0.00016712,2]
[332927614,1721681473074,-856.81,0.00016712,2]
[332927615,1721681473179,-585.65024028,0.00013698,2]
[332927616,1721681473188,-198.28988143,0.00016712,2]
[332927617,1721681473201,-500.0,0.00016712,2]
[332927618,1721681473210,-1201.16,0.00016712,2]
[332927619,1721681473220,-500.0,0.00016712,2]
[332927620,1721681473230,-500.0,0.00016712,2]
[332927621,1721681473239,-646.82,0.00016712,2]
[332927622,1721681473249,-500.0,0.00016712,2]
[332927623,1721681473259,-500.0,0.00016712,2]
[332927624,1721681473269,-500.0,0.00016712,2]
[332927625,1721681473279,-500.0,0.00016712,2]
[332927626,1721681473289,-500.0,0.00016712,2]
[332927627,1721681473299,-888.44,0.00016712,2]
[332927628,1721681473311,-443.07,0.00016712,2]
[332927629,1721681473323,-584.77,0.00016712,2]
[332927630,1721681473332,-500.0,0.00016712,2]
[332927631,1721681473342,-514.7,0.00016712,2]
[332927632,1721681473353,-366.61,0.00016712,2]
[332927633,1721681473364,-500.0,0.00016712,2]
[332927634,1721681473373,-93.42930097,0.00016712,2]
[332927635,1721681473385,-406.57069903,0.00016712,2]
[332927636,1721681473394,-201.3885831,0.00016712,2]
[332927637,1721681473404,-149.10726858,0.00016712,2]
[332927638,1721681473415,-350.89273142,0.00016712,2]
[332927639,1721681473424,-500.0,0.00016712,2]
[332927640,1721681473434,-500.0,0.00016712,2]
[332927641,1721681473444,-500.0,0.00016712,2]
[332927642,1721681473454,-500.0,0.00016712,2]
[332927643,1721681473463,-500.0,0.00016712,2]
[332927644,1721681473474,-500.0,0.00016712,2]
[332927645,1721681473485,-500.0,0.00016712,2]
[332927646,1721681473496,-500.0,0.00016712,2]
[332927647,1721681473508,-609.07,0.00016712,2]
[332927648,1721681473517,-500.0,0.00016712,2]
[332927649,1721681473528,-522.82,0.00016712,2]
[332927650,1721681473539,-627.63,0.00016712,2]
[332927651,1721681473549,-500.0,0.00016712,2]
[332927652,1721681473560,-540.01,0.00016712,2]
[332927653,1721681473570,-500.0,0.00016712,2]
[332927654,1721681473579,-500.0,0.00016712,2]
[332927655,1721681473589,-568.51,0.00016712,2]
[332927656,1721681473599,-500.0,0.00016712,2]
[332927657,1721681473609,-313.63,0.00016712,2]
[332927658,1721681473620,-633.99,0.00016712,2]
[332927659,1721681473630,-500.0,0.00016712,2]
[332927660,1721681473641,-677.52,0.00016712,2]
[332927661,1721681473650,-509.15,0.00016712,2]
[332927662,1721681473659,-500.0,0.00016712,2]
[332927663,1721681473669,-500.0,0.00016712,2]
[332927664,1721681473679,-562.75,0.00016712,2]
[332927665,1721681473688,-318.13,0.00016712,2]
[332927666,1721681473701,-500.0,0.00016712,2]
[332927667,1721681473711,-607.77,0.00016712,2]
[332927668,1721681473720,-500.0,0.00016712,2]
[332927669,1721681473730,-500.0,0.00016712,2]
[332927670,1721681473739,-500.0,0.00016712,2]
[332927671,1721681473749,-500.0,0.00016712,2]
[332927672,1721681473759,-500.0,0.00016712,2]
[332927673,1721681473768,-500.0,0.00016712,2]
[332927674,1721681473778,-809.09,0.00016712,2]
[332927675,1721681473787,-500.0,0.00016712,2]
[332927676,1721681473797,-166.99,0.00016712,2]
[332927677,1721681473806,-500.0,0.00016712,2]
[332927678,1721681473816,-500.0,0.00016712,2]
[332927679,1721681473825,-377.65,0.00016712,2]
[332927680,1721681473835,-740.31,0.00016712,2]
[332927681,1721681473845,-941.88,0.00016712,2]
[332927682,1721681473854,-1442.48,0.00016712,2]
[332927683,1721681473864,-461.3,0.00016712,2]
[332927684,1721681473874,-500.0,0.00016712,2]
[332927685,1721681473885,-500.0,0.00016712,2]
[332927686,1721681473896,-2358.94,0.00016712,2]
[332927687,1721681473907,-667.65,0.00016712,2]
[332927688,1721681473917,-500.0,0.00016712,2]
[332927689,1721681473928,-500.0,0.00016712,2]
[332927690,1721681473938,-500.0,0.00016712,2]
[332927691,1721681473951,-524.14,0.00016712,2]
[332927692,1721681473960,-207.67,0.00016712,2]
[332927693,1721681473970,-500.0,0.00016712,2]
[332927694,1721681473980,-615.18,0.00016712,2]
[332927695,1721681473990,-2089.36,0.00016712,2]
[332927696,1721681473999,-652.17,0.00016712,2]
[332927697,1721681474011,-502.56,0.00016712,2]
[332927698,1721681474020,-1234.39,0.00016712,2]
[332927699,1721681474031,-500.0,0.00016712,2]
[332927700,1721681474042,-500.0,0.00016712,2]
[332927701,1721681474052,-600.8,0.00016712,2]
[332927702,1721681474063,-784.16,0.00016712,2]
[332927703,1721681474072,-570.88,0.00016712,2]
[332927704,1721681474083,-500.0,0.00016712,2]
[332927705,1721681474093,-500.0,0.00016712,2]
[332927706,1721681474103,-962.14,0.00016712,2]
[332927707,1721681474114,-978.53,0.00016712,2]
[332927708,1721681474124,-500.0,0.00016712,2]
[332927709,1721681474134,-696.68,0.00016712,2]
[332927710,1721681474144,-1096.52,0.00016712,2]
[332927711,1721681474154,-500.0,0.00016712,2]
[332927712,1721681474165,-500.0,0.00016712,2]
[332927713,1721681474175,-637.7,0.00016712,2]
[332927714,1721681474186,-500.0,0.00016712,2]
[332927715,1721681474198,-500.0,0.00016712,2]
[332927716,1721681474208,-500.0,0.00016712,2]
[332927717,1721681474218,-402.3,0.00016712,2]
[332927718,1721681474227,-500.0,0.00016712,2]
[332927719,1721681474238,-132.20636686,0.00016712,2]
[332927720,1721681474327,-367.79363314,0.00016712,2]
[332927721,1721681474338,-500.0,0.00016712,2]
[332927722,1721681474349,-500.0,0.00016712,2]
[332927723,1721681474359,-1030.13,0.00016712,2]
[332927724,1721681474369,-500.0,0.00016712,2]
[332927725,1721681474493,-500.0,0.00016712,2]
[332927726,1721681474503,-552.23,0.00016712,2]
[332927727,1721681474512,-500.0,0.00016712,2]
[332927728,1721681474521,-500.0,0.00016712,2]
[332927729,1721681474530,-500.0,0.00016712,2]
[332927730,1721681474538,-524.6,0.00016712,2]
[332927731,1721681474547,-819.36,0.00016712,2]
[332927732,1721681474556,-500.0,0.00016712,2]
[332927733,1721681474565,-500.0,0.00016712,2]
[332927734,1721681474575,-500.0,0.00016712,2]
[332927735,1721681474586,-500.0,0.00016712,2]
[332927736,1721681474596,-273.27,0.00016712,2]
[332927737,1721681474607,-500.0,0.00016712,2]
[332927738,1721681474616,-500.0,0.00016712,2]
[332927739,1721681474626,-500.0,0.00016712,2]
[332927740,1721681474635,-500.0,0.00016712,2]
[332927741,1721681474648,-500.0,0.00016712,2]
[332927742,1721681474658,-500.0,0.00016712,2]
[332927743,1721681474669,-500.0,0.00016712,2]
[332927744,1721681474679,-500.0,0.00016712,2]
[332927745,1721681474690,-500.0,0.00016712,2]
[332927746,1721681474702,-500.0,0.00016712,2]
[332927747,1721681474711,-500.0,0.00016712,2]
[332927748,1721681474721,-278.22,0.00016712,2]
[332927749,1721681474730,-500.0,0.00016712,2]
[332927750,1721681474741,-500.0,0.00016712,2]
[332927751,1721681474752,-500.0,0.00016712,2]
[332927752,1721681474764,-500.0,0.00016712,2]
[332927753,1721681474773,-500.0,0.00016712,2]
[332927754,1721681474783,-500.0,0.00016712,2]
[332927755,1721681474792,-500.0,0.00016712,2]
[332927756,1721681474803,-151.0,0.00016712,2]
[332927757,1721681474814,-500.0,0.00016712,2]
[332927758,1721681474824,-500.0,0.00016712,2]
[332927759,1721681474834,-500.0,0.00016712,2]
[332927760,1721681474843,-175.174591,0.00016712,2]
[332927761,1721681474855,-175.174591,0.00016712,2]
[332927762,1721681474868,-500.0,0.00016712,2]
[332927763,1721681474878,-500.0,0.00016712,2]
[332927764,1721681474889,-578.99,0.00016712,2]
[332927765,1721681474898,-500.0,0.00016712,2]
[332927766,1721681474907,-500.0,0.00016712,2]
[332927767,1721681474917,-151.0,0.00016712,2]
[332927768,1721681474927,-500.0,0.00016712,2]
[332927769,1721681474939,-580.42005554,0.00016712,2]
[332927770,1721681474950,-163.4,0.00016712,2]
[332927771,1721681474959,-416.9,0.00016712,2]
[332927772,1721681474969,-166.666666,0.00016823,2]
[332927773,1721681474979,-1403.19,0.00016986,2]
[332927774,1721681474988,-500.0,0.00016986,2]
[332927775,1721681474997,-500.0,0.00016986,2]
[332927776,1721681475006,-503.99,0.00016986,2]
[332927777,1721681475016,-500.0,0.00016986,2]
[332927778,1721681475025,-1286.77,0.00016986,2]
[332927779,1721681475034,-500.0,0.00016986,2]
[332927780,1721681475043,-500.0,0.00016986,2]
[332927781,1721681475053,-504.21,0.00016986,2]
[332927782,1721681475062,-545.09,0.00016986,2]
[332927783,1721681475071,-2398.17,0.00016986,2]
[332927784,1721681475080,-505.89,0.00016986,2]
[332927785,1721681475090,-278.08,0.00016986,2]
[332927786,1721681475100,-1715.81,0.00016986,2]
[332927787,1721681475109,-519.73,0.00016986,2]
[332927788,1721681475119,-500.0,0.00016986,2]
[332927789,1721681475129,-500.0,0.00016986,2]
[332927790,1721681475138,-2945.6,0.00016986,2]
[332927791,1721681475147,-500.0,0.00016986,2]
[332927792,1721681475156,-500.0,0.00016986,2]
[332927793,1721681475165,-548.84,0.00016986,2]
[332927794,1721681475176,-1056.19,0.00016986,2]
[332927795,1721681475189,-1214.04,0.00016986,2]
[332927796,1721681475202,-500.0,0.00016986,2]